Cogmind - Beta 11.1 @@@ ROGUE MODE // 2022.12.10 @ 01:48:59 Player: Yung_Crimp Result: Destroyed by G-34 Mercenary with Small Laser Performance ------------- Evolutions (1) 500 Regions Visited (2) 400 Robots Destroyed (34) 170 Value Destroyed (600) 600 Prototype IDs (4) 80 Alien Tech Used (0) 0 Bonus (0) 0 TOTAL SCORE: 1750 Bonus ------- None Cogmind --------- Core Integrity 0/400 Matter 300/300 Energy 100/100 System Corruption 0% Temperature Cool (6) Movement Core (1350) Ox26 Location -9/Materials Parts ------- > --- POWER (1) -------- (None) > --- PROPULSION (2) --- (None) > --- UTILITY (4) ------ Huge Storage Unit Improved Terrain Scanner > --- WEAPON (2) ------- (None) > --- INVENTORY (25) --- Ion Engine Light Ion Engine Cooling System Medium Matter Pod (100) Medium Matter Pod (100) Medium Matter Pod (100) Large Matter Pod (150) Sensor Array Signal Interpreter Seismic Detector Targeting Computer Tractor Beam Beam Cannon Beam Cannon Grenade Launcher Grenade Launcher Welding Torch Welding Torch Mining Claw Peak State ------------ > --- POWER ------------ Ion Engine > --- PROPULSION ------- Aluminum Leg Aluminum Leg > --- UTILITY ---------- Huge Storage Unit Improved Terrain Scanner Utility Shielding Medium Armor Plating > --- WEAPON ----------- EM Pulse Gun Mace > --- INVENTORY -------- Ion Engine Light Ion Engine Light Ion Engine Light Treads Cooling System Medium Matter Pod Medium Matter Pod Medium Matter Pod Large Matter Pod Sensor Array Signal Interpreter Seismic Detector Targeting Computer Shield Generator Tractor Beam Medium Laser Beam Cannon Beam Cannon Grenade Launcher Grenade Launcher Welding Torch Welding Torch Mining Claw [Rating: 15] Favorites ----------- Power Ion Engine Engine Ion Engine Propulsion Light Treads Treads Light Treads Leg Aluminum Leg Utility Huge Storage Unit Device Improved Terrain Scanner Storage Huge Storage Unit Protection Utility Shielding Weapon Grenade Launcher Energy Gun Medium Laser Energy Cannon Beam Cannon Ballistic Gun Assault Rifle Launcher Grenade Launcher Impact Weapon Mace Slashing Weapon Mining Claw Build | -11 -10 -9 ------- Run | Scr Mat Mat Slots Evolved 2 | . . 2 Power . | . . . Propulsion . | . . . Utility 2 | . . 2 Weapon . | . . . Parts Attached 32 | 11 10 11 Power 3 | 1 1 1 Engine 3 | 1 1 1 Core . | . . . Reactor . | . . . Propulsion 8 | 5 2 1 Treads 3 | 2 . 1 Leg 5 | 3 2 . Wheel . | . . . Hover . | . . . Flight . | . . . Utility 10 | 3 3 4 Device 3 | 1 . 2 Storage 4 | 2 2 . Processor . | . . . Hackware . | . . . Protection 3 | . 1 2 Artifact . | . . . Weapon 11 | 2 4 5 Energy Gun 4 | 1 1 2 Energy Cannon 1 | . . 1 Ballistic Gun 2 | 1 1 . Ballistic Cannon . | . . . Launcher 2 | . 2 . Special Weapon . | . . . Impact Weapon 1 | . . 1 Slashing Weapon 1 | . . 1 Piercing Weapon . | . . . Special Melee Weapon . | . . . Unidentified Prototypes . | . . . Parts Lost 8 | . . 8 Power 2 | . . 2 Propulsion . | . . . Utility 3 | . . 3 Weapon 3 | . . 3 Highest Loss Streak 4 | . . 4 To Critical Strikes . | . . . Average Slot Usage (%) 97 | . 100 85 Engine 13 | . 14 8 Treads 13 | . 15 2 Leg 12 | . 12 13 Device 2 | . . 13 Storage 19 | . 21 11 Protection 7 | . 6 15 Energy Gun 6 | . 6 7 Ballistic Gun 6 | . 7 . Launcher 11 | . 13 . Impact Weapon 1 | . . 10 Naked Turns . | . . . Heaviest Build 99 | 15 92 99 Greatest Support 40 | 40 40 20 Greatest Overweight (x) 30 | . 4 30 Average Overweight (x) 2 | . 2 4 Largest Inventory Capacity 25 | 8 25 25 Average Capacity 22 | 7 24 25 Most Carried 25 | 7 25 25 Average Carried 16 | 4 18 21 Final Capacity 25 | 8 25 25 Final Carried 25 | 4 25 19 Class Distribution -------------------- 100% | Mutant Dominant Class ---------------- Mutant | -10/Materials Mutant | -9/Materials Resources | -11 -10 -9 ----------- Run | Scr Mat Mat Matter Collected 1127 | 435 502 190 Remotely . | . . . Salvage Created 849 | 246 293 310 Parts 75 | 27 26 22 Haulers Intercepted . | . . . Recyclers Shooed 2 | 1 1 . Parts Field Recycled . | . . . Retrieved Matter . | . . . Parts Self-Destructed . | . . . Prevented . | . . . Kills | -11 -10 -9 ------- Run | Scr Mat Mat Combat Hostiles Destroyed 19 | . 12 7 Melee 6 | . 2 4 Guns 3 | . 2 1 AOE 9 | . 8 1 Classes Destroyed 7 | 3 2 2 Worker 6 | 4 . 2 Tunneler 6 | 4 . 2 Recycler 2 | 1 1 . Operator 1 | . . 1 Swarmer 7 | . 6 1 Grunt 11 | . 6 5 Duelist 1 | . . 1 Best Kill Streak 5 | 4 5 4 Combat Bots Only 5 | . 5 2 Max Kills in Single Turn 2 | 1 2 2 Gunslinging . | . . . Exploded 2 | . 2 1 Melee 1 | . 1 1 Uniques/NPCs Destroyed . | . . . Combat | -11 -10 -9 -------- Run | Scr Mat Mat Damage Taken 1672 | . 468 1204 Core 464 | . 56 408 Absorbed by Shields 89 | . . 89 Redirected to Shielding 53 | . 3 50 Core Remaining (%) 88 | 100 77 . Volleys Fired 50 | 14 27 9 Largest 2 | 2 1 1 Hottest 60 | 60 30 40 Shots Fired 64 | 28 27 9 Gun 59 | 28 22 9 Cannon . | . . . Launcher 5 | . 5 . Special . | . . . Kinetic 36 | 14 22 . Thermal 14 | 14 . . Explosive 5 | . 5 . Electromagnetic 9 | . . 9 Robot Hit Streak 9 | 9 4 4 Robot Miss Streak 2 | 2 2 1 Penetration Max . | . . . Secondary Targets . | . . . Shots Hit Robots 57 | 18 14 25 Core Hits 42 | 10 22 10 Critical Kills 1 | . . 1 Critical Parts Destroyed 1 | . . 1 Critical Strikes 2 | . . 2 Smash 2 | . . 2 Melee Attacks 31 | . . 31 Impact 31 | . . 31 Slashing . | . . . Piercing . | . . . Sneak Attacks 3 | . . 3 Combat Hostiles . | . . . Follow-up Attacks . | . . . Damage Inflicted 1814 | 242 608 964 Guns 424 | 214 120 90 Cannons . | . . . Explosions 493 | . 349 144 Melee 730 | . . 730 Ramming 167 | 28 139 . Kinetic 223 | 103 120 . Thermal 255 | 111 . 144 Explosive 349 | . 349 . Electromagnetic 90 | . . 90 Impact 730 | . . 730 Slashing . | . . . Piercing . | . . . Highest Corruption . | . . . Average Corruption . | . . . Corruption Purged . | . . . Corruption Blocked . | . . . Overload Shots . | . . . Overflow Damage 209 | . 4 205 Projectiles 10 | . . 10 Explosions 4 | . 4 . Melee 195 | . . 195 Knockbacks 5 | . 2 3 Impact 5 | . 2 3 Kinetic . | . . . Secondary . | . . . Self-Inflicted Damage 35 | . . 35 Shots 1 | . . 1 Rammed 27 | 6 20 1 Targets Rammed 32 | 6 25 1 Kicked 3 | . 3 . Crushed 2 | . 2 . Highest Temperature 49 | . 6 49 Average Temperature 24 | . 6 30 Received Heat Transfer 526 | . 192 334 Siege Activations . | . . . Robots Corrupted . | . . . Combat Hostiles . | . . . Parts Fried 1 | . . 1 Impact Corruptions 12 | . . 12 Robots Melted . | . . . Combat Hostiles . | . . . Parts Melted . | . . . Heat Transferred 450 | 250 . 200 Parts Sabotaged . | . . . Parts Stolen . | . . . Parts Stripped . | . . . Power Chain Reactions 2 | . . 2 Missiles Intercepted . | . . . Alert | -11 -10 -9 ------- Run | Scr Mat Mat Peak Influence 204 | 25 204 129 Initial . | . . . Average 37 | 13 41 44 Maximum Alert Level 1 | . 1 . Low Security (%) 98 | 100 97 100 Level 1 1 | . 2 . Level 2 . | . . . Level 3 . | . . . Level 4 . | . . . Level 5 . | . . . High Security . | . . . Max Security . | . . . Squads Dispatched 4 | . 2 2 Investigation 3 | . 2 1 Extermination . | . . . Reinforcement 1 | . . 1 Assault . | . . . Garrison . | . . . Intercept . | . . . Searches Triggered . | . . . Construction Impeded . | . . . Haulers Reinforced . | . . . Active Scanning Responses . | . . . Cargo Convoy Interrupts . | . . . Stealth | -11 -10 -9 --------- Run | Scr Mat Mat Distress Signals . | . . . Communications Jammed . | . . . Distress Signals . | . . . Times Spotted 48 | . 35 13 Peak Tracking Total 5 | . 5 4 Tactical Retreats 2 | . 1 1 Traps | -11 -10 -9 ------- Run | Scr Mat Mat Traps Triggered 1 | . 1 . Indirectly . | . . . Trap Hack Attempts . | . . . Triggered . | . . . Disarmed . | . . . Reprogrammed . | . . . Reused . | . . . Traps Extracted . | . . . Installed . | . . . Triggered . | . . . Machines | -11 -10 -9 ---------- Run | Scr Mat Mat Machines Disabled 2 | . 1 1 Max in Single Turn 1 | . 1 1 Machines Sabotaged . | . . . Garrisons Compromised . | . . . Overloaded Fab Kills . | . . . Hacking | -11 -10 -9 --------- Run | Scr Mat Mat Machines Accessed 11 | . 10 1 Terminals 8 | . 7 1 Fabricators . | . . . Repair Stations 1 | . 1 . Recycling Units 2 | . 2 . Scanalyzers . | . . . Garrison Access . | . . . Total Hacks 41 | . 35 6 Successful 24 | . 21 3 Failed 17 | . 14 3 Catastrophic 1 | . 1 . Database Lockouts . | . . . Manual . | . . . Terminals 33 | . 27 6 Fabricators . | . . . Repair Stations 3 | . 3 . Recycling Units 5 | . 5 . Scanalyzers . | . . . Garrison Access . | . . . Terminal Hacks 18 | . 15 3 Record 10 | . 7 3 Robot Analysis 1 | . 1 . Prototype ID Bank 2 | . 2 . Alert Level 3 | . 3 . Locate Traps 1 | . 1 . Registered Components 1 | . 1 . Fabricator Hacks . | . . . Repair Station Hacks 1 | . 1 . Scan Component 1 | . 1 . Recycling Unit Hacks 5 | . 5 . Recycle Component 3 | . 3 . Process 1 | . 1 . Report Inventory 1 | . 1 . Scanalyzer . | . . . Garrison Access Hacks . | . . . Unauthorized Hacks . | . . . Terminals . | . . . Fabricators . | . . . Repair Stations . | . . . Recycling Units . | . . . Scanalyzers . | . . . Garrison Access . | . . . Data Cores Recovered . | . . . Used . | . . . Hacking Detections 10 | . 9 1 Full Trace Events 8 | . 7 1 Feedback Events . | . . . Feedback Blocked . | . . . Robot Schematics Acquired . | . . . Robots Built . | . . . Authchips . | . . . Time . | . . . Total Robot Build Rating . | . . . Part Schematics Acquired . | . . . Parts Built . | . . . Authchips . | . . . Time . | . . . Total Part Build Rating . | . . . Parts Repaired . | . . . Time . | . . . Parts Recycled 3 | . 3 . Recycled Matter 160 | . 160 . Retrieved Matter . | . . . Retrieved Components . | . . . Parts Scanalyzed . | . . . Part Schematics Acquired . | . . . Parts Damaged . | . . . Bothacking | -11 -10 -9 ------------ Run | Scr Mat Mat Used RIF Installer . | . . . Robots Hacked . | . . . Non-combat . | . . . Combat . | . . . Robot Hacks Applied . | . . . Relay Couplers Released . | . . . Fabnet Peak Effective % . | . . . Robots Rewired . | . . . Allies Hacked . | . . . Hacks Repelled . | . . . Allies | -11 -10 -9 -------- Run | Scr Mat Mat Total Allies . | . . . Largest Group . | . . . Highest-Rated Group . | . . . Highest-Rated Ally . | . . . Total Orders . | . . . Ally Attacks . | . . . Total Damage . | . . . Kills . | . . . Allies Corrupted . | . . . Allies Melted . | . . . Intel | -11 -10 -9 ------- Run | Scr Mat Mat Robot Analysis Total 1 | . 1 . Derelict Logs Recovered . | . . . Drone Launches . | . . . Drone Recoveries . | . . . Exploration | -11 -10 -9 ------------- Run | Scr Mat Mat Turns Passed 5195 | 874 3501 820 Spaces Moved 1617 | 514 949 154 Core 27 | 22 . 5 Treads 1083 | 480 568 35 Legs 507 | 12 381 114 Wheels . | . . . Hover . | . . . Flight . | . . . Fastest Speed 50 | 50 160 400 Average Speed 297 | 154 350 452 Slowest Speed 1550 | 160 400 1550 Overloaded Moves . | . . . Propulsion Burnouts . | . . . Robots Hopped . | . . . Cave-ins Triggered . | . . . Exploration Rate (%) 44 | 23 99 12 Regions Visited 2 Branch Regions . Pre-discovered Areas . | . . . Known Exits Taken . | . . . Unknown Exits Taken 2 | 1 1 . Scrap Searched . | . . . Spaces Dug . | . . . Terrain Destroyed 39 | . 36 3 Melee . | . . . Projectile . | . . . AOE 39 | . 36 3 Terrain Rammed . | . . . Walls Destroyed . | . . . Machines Disabled . | . . . Actions | -11 -10 -9 --------- Run | Scr Mat Mat Total 1831 | 567 1052 212 Wait . | . . . Move 1615 | 513 948 154 Hop . | . . . Pick Up 47 | 15 31 1 Fast Attach . | . . . Attach 30 | 11 10 9 Detach 11 | 4 5 2 Swap 2 | . . 2 Drop 13 | 4 6 3 Fire 50 | 14 27 9 Melee 31 | . . 31 Ram 1 | . . 1 Kick 3 | . 3 . Crush 28 | 6 22 . Escape Stasis . | . . . Rewire . | . . . Trap . | . . . Miscellaneous . | . . . Route ------- -11/Scrapyard -10/Materials (discovered 5 exits: *Mat x3 / [*Min x2]) -9/Materials History --------- Turn | Location | Event 15 | -11/Scrapyard | Discovered new exit (range 16) 875 | -11/Scrapyard | Entered Materials 876 | -10/Materials | Build established: Mutant 1037 | -10/Materials | Discovered new exit (range 16) 1439 | -10/Materials | Discovered new exit (range 16) 1944 | -10/Materials | Discovered new exit (range 10) 3040 | -10/Materials | Discovered new exit (range 4) 3558 | -10/Materials | Discovered new exit (range 5) 4376 | -10/Materials | Entered another Materials area 4376 | -9/Materials | Evolved 2 slots: Utility x2 4856 | -9/Materials | Lost 3 parts (1p1u1w) 5152 | -9/Materials | Lost 4 parts (1p2u1w) 5162 | -9/Materials | Core integrity fell below 50% 5183 | -9/Materials | Core integrity fell below 20% 5196 | -9/Materials | Destroyed by G-34 Mercenary with Small Laser Last Messages --------------- 05109_ Med. Laser destroyed. 05113_ Utility Shielding destroyed. 05121_ Lgt. Ion Engine destroyed. 05123_ G-34 Mercenary destroyed. 05171_ Destroyed Lgt. Ion Engine. 05171_ S-10 Pest system corrupted by crushing effect. 05171_ Destroyed Flight Unit. 05171_ S-10 Pest system corrupted by crushing effect. 05172_ S-10 Pest system terminally corrupted. 05173_ Destroyed Flight Unit. 05173_ Destroyed Lgt. Assault Rifle. 05173_ S-10 Pest system corrupted by crushing effect. 05174_ S-10 Pest system terminally corrupted. 05184_ Destroyed Flight Unit. 05184_ S-10 Pest system corrupted by crushing effect. 05189_ S-10 Pest IFF system glitched. 05190_ Mace destroyed. 05193_ Slammed into S-10 Pest. 05193_ Destabilizing: System interference. 05193_ Imp. Terrain Scanner temporarily disabled. Map ----- +----------------------------------------------------+ | ?????????????????????????????????????????????? | | ?????????????????????????????????????????????? | | ?????????????????????????????????????????????? | | ?????????????????????????????????????????????? | | ?????????????????????????????????????????????? | | ?????????????????????????????????????????????? | | ?????????????????????????????????????????????? | | ?????????????????????????????????????????????? | | ?????????????????????????? ?????????????????? | | ?????????????????????????? #???????????????? | | ?????????????????????????? #???????????????? | | ?????????????????????" ??? #???????????????? | | ???????????????????????/?? #???????????????? | | ??????????????????? ????#? #???????????????? | | ?????????????????????????? #???????????????? | | ????????????????????????## ##?#????#???????? | | ???????????????????????? Yg #???????????????? | | ???????????????????#?#??# #???????????????? | | ??????????????#?????????# ######?##? ?????? | | ??????????????????# ??? # ???????????? | | ?????????????##?###?????#% ????????????? | | ??????????????????? ?? ?#*% ? ?? ???#??????? | | ?????????????#????? ????#=[ ???? ???????????? | | ???????????#?????#???? ?#s#??????????????????? | | ???????????? ? ? ##???? #s#?##????#?????#????? | | ???????????? "?? ????#??#@#?#??????#???#?????? | | ??????????? ?""" ?#?????#=#???#??????#???????? | | ?????????? ??"?"????????#=##?????##??#?#?????? | | ?????????? ????? ??###?##%#??? ???????#?????? | | ?????????????????????? ?#+###? ?"????????????? | | ??????????????? ????????#=* # "???????#?#????? | | ??????????? ? ?????## ## #????""? ????????? | | ???"??????? ?????? ?????# #????"???????????? | | ??????????#?? #?????#???# # ?????????#?????? | | ????????????#????#?#????# # ?? ???#???????? | | ??????????#?##??#??????## # ? ???#???????? | | ?????????????????##?#??## # ? ? ? ????????? | | ????#??????##???????#######+#####+##?????????? | | ????????#?#?#????????# #?#???????? | | ??? ???#??############ #?##??????? | | ???????#????# """ ## #?????????? | | ????#???#???# """"" ## #######+# #?????????? | | ????????#???# """"" ## ##? ?? ???#?????????? | | ???????#????# """"" #* #??????# ?#??#?????? | | ??????????#?# """ [#!= ##???? ??#?????????? | | ???????#? # *+ !=%[## ""??????????????? | | ?????? #????# %#==%* #??? ?????#????????? | | ???????? ???# # =! #????? #???????????? | | ??#????? ???# [##!% ##???T?????????#????? | | ?? ? # +????# ## * ###??"????#?????????? | +----------------------------------------------------+ Best States ------------- Heat Dissipation 28 Energy Generation 10 Energy Capacity 250 Matter Stores 400 Matter Capacity 400 Sight Range 16 Terrain Scan Range 16 Terrain Scan Density 10 Armor Coverage 225 Utility Shielding 33 Evasion (%) 50 Recoil Reduction 2 Item Schematics ----------------- None Robot Schematics ------------------ None Fabricated ------------ Nothing Alien Tech Used ----------------- None Achievements -------------- Fist Fight Librarian Novice Programmer Uninvited Guest Challenges ------------ None Game ------ Seed ChainRefineryDesublimator Manual? 0 Play Time 00:46:33 Cumulative 2.1 hours Start 2022.12.10 @ 00:42:21 End 2022.12.10 @ 01:48:59 Sessions 1 Manual Loads 0 Difficulty Rogue Special Mode None Game No. 4 Rogue 4 Adventurer 0 Explorer 0 Win Type - Total 0 Types 0/0/0/0/0/0/0/0/0 Lore% 1 Gallery% 2 Achievement% 3 Wizard Run 0 Options --------- ASCII 0 Keyboard 0 Movement Arrows Keybinds 0 Fullscreen 1 Font 18/SmallcapsGlow Map View 76x50 Tactical HUD 1 Map Filters NONE Filters NONE Steam 1 RUN: 298dbf9e-0e4b-4c7e-b3c2-f7d41e6ba2dd